bitfinex/quotes_ETHUSD_20241216
["timestamp","ask_amount","ask_price","bid_price","bid_amount"]
[1734307495158,2.52878,3954.5,3953.1,0.7611]
[1734307495308,2.6568894,3954.8,3953.1,0.7611]
[1734307495309,2.781728,3954.4,3953.1,0.7611]
[1734307495512,0.55,3954.3,3953.1,0.7611]
[1734307495843,2.52929,3953.7,3953.1,0.7611]
[1734307496004,0.55,3954.3,3953.1,0.7611]
[1734307496005,0.55,3953.6,3953.1,0.7611]
[1734307497185,0.55,3953.6,3952.4,0.8262]
[1734307497513,3.0798,3952.9,3952.4,0.8262]
[1734307497881,0.55,3953.0,3952.4,0.8262]
[1734307499009,0.32068894,3953.5,3952.4,0.8262]
[1734307499218,3.07956,3953.3,3952.4,0.8262]
[1734307499398,0.89002489,3953.3,3952.4,0.8262]
[1734307499575,2.52969,3953.1,3952.4,0.8262]
[1734307499777,0.55,3953.4,3952.4,0.8262]
[1734307499778,2.52994,3952.7,3952.4,0.8262]
[1734307500541,2.5298,3952.9,3952.4,0.8262]
[1734307500668,0.80298,3952.8,3952.4,0.8262]
[1734307502413,0.55,3952.8,3952.4,0.8262]
[1734307502780,2.6568894,3953.8,3952.4,0.8262]
[1734307503000,0.2116,3954.1,3952.6,0.8089]
[1734307503315,2.52914,3953.9,3952.6,0.8089]
[1734307503622,0.53974894,3954.0,3952.6,0.8089]
[1734307503888,2.52975,3953.0,3952.6,0.8089]
[1734307504387,0.55,3952.9,3952.6,0.8089]
[1734307504738,2.52953,3953.3,3952.6,0.8089]
[1734307505690,0.55,3953.4,3952.6,0.8089]
[1734307506053,2.52896,3954.2,3952.6,0.8089]
[1734307506054,0.55,3953.7,3952.6,0.8089]
[1734307506256,2.52901,3954.2,3952.7,0.02529676]
[1734307506473,0.2116,3955.3,3953.0,8.89]
[1734307506777,0.2116,3955.3,3952.9,0.5103052]
[1734307506778,2.52884,3954.4,3953.3,0.772]
[1734307507156,0.2116,3955.3,3953.3,0.772]
[1734307507358,2.6568894,3954.9,3953.3,0.772]
[1734307507543,2.6568894,3954.9,3952.4,3.0]
[1734307507544,2.52939,3953.6,3952.4,3.0]
[1734307507740,2.52939,3953.6,3952.5,1.27102914]
[1734307507741,2.52971,3953.1,3952.5,1.27102914]
[1734307508053,2.52951,3953.4,3952.5,1.27102914]
[1734307508567,0.55,3953.3,3952.5,1.27102914]
[1734307509287,0.55,3953.3,3952.5,0.772]
[1734307509493,2.53024,3952.2,3951.1,0.7569]
[1734307509798,2.53024,3952.2,3950.6,1.54614431]
[1734307509799,0.55,3952.4,3951.3,0.8154]
[1734307510081,2.53071,3951.5,3951.3,0.8154]
[1734307510445,0.55,3952.0,3951.3,0.8154]
[1734307511084,0.55,3951.8,3951.3,0.8154]
[1734307511799,2.53043,3951.9,3951.3,0.8154]
[1734307511800,0.55,3951.9,3951.3,0.8154]
[1734307512000,2.6568894,3952.3,3951.3,0.8154]
[1734307512001,2.5303,3952.1,3951.3,0.8154]
[1734307512302,2.53035,3952.1,3951.3,0.8154]
[1734307512652,0.55,3952.2,3951.3,0.8154]
[1734307512878,2.53065,3951.6,3951.3,0.8154]
[1734307513085,0.55,3951.5,3951.3,0.8154]
[1734307513247,3.08069,3951.5,3951.3,0.8154]
[1734307513446,0.55,3951.5,3951.3,0.8154]
[1734307513686,0.55,3951.8,3951.3,0.8154]
[1734307513900,2.6568894,3952.3,3951.3,0.8154]
[1734307513901,0.55,3952.0,3951.3,0.8154]
[1734307514390,0.2116,3953.4,3951.8,0.8053]
[1734307514592,2.8684894,3953.8,3951.8,0.8053]
[1734307514884,2.52974,3953.0,3951.8,1.138884]
[1734307515098,2.52974,3953.0,3951.9,0.8053]
[1734307515661,0.55,3952.9,3951.9,0.8053]
[1734307515862,0.55,3952.9,3951.9,1.322708]
[1734307516112,0.55,3953.2,3952.1,0.8053]
[1734307516272,3.07961,3953.2,3952.1,0.8053]
[1734307516466,0.55,3953.2,3952.1,0.8053]
[1734307516914,3.2116,3954.2,3952.4,0.8199]
[1734307517207,2.52922,3953.8,3952.6,0.8199]
[1734307517704,2.52928,3953.7,3952.6,0.8199]
[1734307518107,2.52914,3954.0,3952.6,0.8199]
[1734307518282,2.52922,3953.8,3952.7,0.36875359]
[1734307518482,0.55,3953.7,3952.7,0.36875359]
[1734307518694,0.55,3953.6,3952.7,0.36875359]
[1734307518895,0.55,3953.6,3952.6,0.8199]
[1734307518896,0.55,3954.0,3952.6,0.8199]
[1734307519071,0.55,3953.6,3952.6,0.8199]
[1734307519272,0.55,3953.6,3952.6,3.8199]
[1734307519578,0.2116,3954.2,3952.8,0.51285424]
[1734307519579,0.55,3953.7,3952.8,0.51285424]
[1734307520281,0.55,3953.5,3952.6,0.8199]
[1734307520479,0.55,3953.0,3952.6,0.8199]
[1734307521027,0.55,3953.3,3952.6,0.8199]
[1734307521318,2.6568894,3953.8,3952.6,0.8199]
[1734307521319,0.55,3953.7,3952.6,0.8199]
[1734307521471,0.55,3952.4,3952.2,0.8281]
[1734307521903,3.08012,3952.4,3952.2,0.8281]
[1734307522096,3.08012,3952.4,3951.8,0.49604658]
[1734307522298,0.55,3952.6,3951.8,0.49604658]
[1734307522498,0.55,3952.6,3951.9,0.8281]
[1734307523709,5.3980194,3953.3,3951.3,0.8281]
[1734307523710,0.55,3952.2,3951.3,0.8281]
[1734307523908,0.55,3952.0,3951.6,0.5022143]
[1734307524215,0.55,3952.2,3951.6,0.5022143]
[1734307524413,0.55,3952.2,3951.3,0.8281]
[1734307524569,0.55,3951.9,3951.3,0.8281]
[1734307525505,2.74164,3952.5,3951.3,0.8281]
[1734307525506,0.55,3952.1,3951.3,0.8281]
[1734307525669,3.08059,3951.7,3951.3,0.8281]
[1734307526219,0.55,3951.7,3951.3,0.8281]
[1734307526771,0.55,3951.8,3951.3,0.8281]
[1734307526970,0.55,3952.1,3951.3,0.8281]
[1734307527194,1.11727734,3952.2,3951.3,0.8281]
[1734307527399,0.55,3951.9,3951.3,0.8281]
[1734307527706,2.53043,3951.9,3951.3,0.8281]
[1734307527905,0.858043,3951.8,3951.3,0.8281]
[1734307528410,0.55,3952.0,3951.3,0.8281]
[1734307528619,0.55,3952.3,3951.3,0.8281]
[1734307529121,2.52998,3952.6,3951.3,0.8281]
[1734307529411,2.52998,3952.6,3951.5,0.792]
[1734307530141,2.6568894,3952.8,3951.5,0.792]
[1734307530487,2.6568894,3952.8,3951.5,3.32267]
[1734307530696,2.52966,3953.1,3951.8,2.53048]
[1734307531011,3.06947494,3953.1,3951.9,0.824]
[1734307531233,0.55,3952.9,3951.9,0.824]
[1734307531377,2.52979,3952.9,3951.9,0.824]
[1734307531720,0.55,3952.8,3951.9,0.824]
[1734307532074,0.55,3952.6,3951.9,0.824]
[1734307532413,0.55,3952.4,3951.9,0.824]
[1734307532586,0.55,3952.4,3952.0,0.13289984]
[1734307532783,0.04600913,3952.3,3952.0,0.13289984]
[1734307532989,3.51364941,3953.8,3952.0,0.13289984]
[1734307532990,5.1864494,3953.3,3952.0,0.13289984]
[1734307533172,0.04447548,3952.2,3952.0,0.13289984]
[1734307533374,0.55,3953.1,3952.0,0.13289984]
[1734307533614,0.55,3953.0,3952.0,0.13289984]
[1734307533957,0.04469423,3953.0,3952.2,0.824]
[1734307534154,0.04469423,3953.0,3952.5,2.53001]
[1734307534359,2.8684894,3954.3,3952.6,0.8137]
[1734307534720,2.52922,3953.8,3952.6,0.8137]
[1734307534966,2.6568894,3953.8,3952.6,0.8137]
[1734307535175,0.2116,3953.6,3952.6,0.8137]
[1734307535330,0.55,3953.0,3952.6,0.8137]
[1734307535741,0.55,3952.8,3952.6,0.8137]
[1734307536132,0.59174285,3952.7,3952.6,0.8137]
[1734307536331,0.55,3952.4,3951.9,0.5061089]
[1734307536531,0.55,3952.4,3951.7,0.7792]
[1734307536732,0.55,3952.2,3951.7,0.7792]
[1734307536935,0.55,3952.2,3951.8,0.50196212]
[1734307537131,2.53005,3952.5,3951.8,0.50196212]
[1734307537132,0.55,3952.4,3951.8,0.50196212]
[1734307537534,0.04171681,3952.3,3951.8,0.50196212]
[1734307537737,0.55,3952.2,3951.8,0.50196212]
[1734307537943,2.5295,3953.4,3951.8,0.50196212]
[1734307537944,0.55,3953.1,3952.0,2.53034]
[1734307538148,2.52947,3953.4,3952.1,0.8233]
[1734307538421,0.04043582,3953.3,3952.1,0.8233]
[1734307538647,2.56998582,3953.3,3952.1,0.8233]
[1734307538858,2.52987,3952.8,3952.1,0.8233]
[1734307539066,0.04034208,3952.7,3952.1,0.8233]
[1734307539361,2.57027208,3952.7,3952.1,0.8233]
[1734307539572,0.55,3952.6,3952.1,0.8233]
[1734307540976,0.55,3952.4,3952.1,0.8233]
[1734307541501,2.52914,3953.9,3952.5,2.53004]
[1734307541701,2.52923,3953.8,3952.6,2.00748112]
[1734307541863,2.52923,3953.8,3952.6,1.14447375]
[1734307542500,2.52923,3953.8,3952.7,0.86298876]
[1734307542697,2.74067,3954.1,3952.7,1.42110876]
[1734307543019,2.52907,3954.1,3952.9,0.8245]
[1734307543363,2.52907,3954.1,3953.0,0.86276048]
[1734307543559,0.2116,3954.5,3953.0,0.86276048]
[1734307543763,2.52887,3954.4,3953.0,3.39245048]
[1734307544004,2.52871,3954.6,3953.3,2.52951]
[1734307544203,0.2116,3954.9,3953.4,0.8245]
[1734307544204,2.52878,3954.5,3953.4,0.8245]
[1734307544574,0.51198589,3954.9,3953.4,0.8245]
[1734307545114,2.52884,3954.4,3953.4,0.8245]
[1734307545318,2.52892,3954.3,3953.4,0.8245]
[1734307545611,0.55,3954.2,3953.4,0.8245]
[1734307545971,2.52846,3955.0,3953.4,0.8245]
[1734307546321,2.79231891,3955.1,3953.9,0.8301]
[1734307546817,2.79231891,3955.1,3954.0,0.49933007]
[1734307547510,0.26391891,3955.1,3954.0,0.49933007]
[1734307547728,2.52856,3954.9,3954.0,0.49933007]
[1734307548484,0.55,3954.8,3954.0,0.49933007]
[1734307548679,0.55,3955.0,3954.0,0.63227308]
[1734307548880,0.26391891,3955.1,3954.2,0.7733]
[1734307549090,0.26391891,3955.1,3954.4,2.52882]
[1734307549271,0.03891882,3955.0,3954.5,3.0]
[1734307549607,0.03891882,3955.0,3954.6,0.7733]
[1734307549912,0.26391891,3955.1,3954.6,1.15063]
[1734307550275,0.26391891,3955.1,3954.6,0.7733]
[1734307550477,0.55,3955.0,3954.6,0.7733]
[1734307551964,0.55,3954.8,3954.6,0.7733]
[1734307552314,0.58690503,3954.7,3954.6,0.7733]
[1734307552970,0.55,3955.0,3954.6,0.7733]
[1734307553401,0.55,3954.8,3954.6,0.7733]
[1734307553903,0.58690503,3954.7,3954.6,0.7733]
[1734307554285,0.03690503,3954.7,3954.6,0.90066184]
[1734307554488,0.26391891,3955.1,3954.6,3.90066184]
[1734307554673,0.2116,3956.4,3954.6,3.90066184]
[1734307555069,0.03816944,3956.3,3954.6,3.90066184]
[1734307555375,2.52772,3956.2,3954.9,2.52849]
[1734307555576,0.31589538,3956.3,3955.0,0.7815]
[1734307555577,3.07774,3956.1,3955.0,0.7815]
[1734307555800,0.58821624,3956.1,3955.0,0.7815]
[1734307555985,0.55,3955.3,3955.0,0.7815]
[1734307556565,0.55,3954.9,3954.5,0.7815]
[1734307556716,0.55,3955.1,3954.5,0.7815]
[1734307556871,0.03832027,3955.0,3954.5,0.7815]
[1734307557208,0.55,3954.9,3954.5,0.7815]
[1734307557587,0.55,3954.7,3954.5,0.7815]
[1734307557976,0.58698954,3954.6,3954.5,0.7815]
[1734307559203,0.58698954,3954.6,3954.5,0.91137544]
[1734307559513,0.55,3954.6,3954.5,0.7815]
[1734307559723,0.58684393,3954.6,3954.5,0.7815]
[1734307559880,0.55,3954.5,3953.6,0.7815]
[1734307560231,0.55,3954.3,3954.2,0.812]
[1734307560465,3.0,3956.7,3954.2,0.83728359]
[1734307560758,3.0,3956.7,3954.3,0.812]
[1734307560759,2.6568894,3956.3,3954.3,0.812]
[1734307561111,2.5281,3955.6,3954.3,0.812]
[1734307561309,2.56363706,3956.2,3954.7,0.49375666]
[1734307561614,0.03596706,3956.2,3954.8,0.7889]
[1734307561813,0.55,3955.9,3954.9,3.12826567]
[1734307562077,0.55,3955.9,3954.9,0.12826567]
[1734307562207,0.55,3955.7,3954.9,0.12826567]
[1734307562408,0.03474447,3955.6,3954.9,0.12826567]
[1734307562762,0.55,3955.5,3954.9,3.12826567]
[1734307563067,0.03352701,3955.4,3955.0,0.69394723]
[1734307563360,0.54695469,3955.3,3955.0,0.69394723]
[1734307563706,0.0334958,3955.2,3955.0,0.69394723]
[1734307563907,0.54695469,3955.3,3955.0,0.69394723]
[1734307564141,0.03237927,3955.2,3955.1,0.81418195]
[1734307564648,2.77566,3956.9,3955.1,0.81418195]
[1734307564845,2.52756,3956.4,3955.1,0.81418195]
[1734307565044,0.0327069,3956.3,3955.1,0.81418195]
[1734307565460,0.55,3956.2,3955.4,0.7889]
[1734307565799,2.52746,3956.6,3955.5,0.02527756]
[1734307566094,0.03289928,3956.5,3955.5,3.7889]
[1734307566386,0.2484,3957.2,3955.5,3.7889]
[1734307566387,0.2484,3957.2,3955.6,0.02527652]
[1734307566603,0.2484,3957.2,3955.7,0.7889]
[1734307566740,2.52726,3956.9,3955.8,0.02527622]
[1734307566941,2.56009804,3957.1,3955.9,0.7889]
[1734307567172,0.03197606,3956.8,3956.1,0.7889]
[1734307567388,0.03235554,3957.0,3956.1,0.7889]
[1734307567569,0.03230876,3956.7,3956.1,0.7889]
[1734307567775,2.77981,3957.1,3956.1,0.7889]
[1734307567971,0.03229317,3956.6,3956.1,0.7889]
[1734307568171,0.55,3956.8,3956.1,0.7889]
[1734307568572,0.55,3956.6,3956.1,0.7889]
[1734307569092,3.02747723,3958.4,3956.1,0.7889]
[1734307569093,0.55,3956.4,3956.1,0.7889]
[1734307569464,0.55,3956.7,3956.1,0.7889]
[1734307569797,0.2484,3957.6,3956.0,0.51479283]
[1734307569798,0.03229317,3956.6,3956.4,5.1844094]
[1734307570100,0.2484,3958.2,3956.0,3.04259283]
[1734307570101,0.2484,3958.2,3956.6,3.30659]
[1734307570283,0.03167926,3958.1,3956.7,4.41238604]
[1734307570450,0.2484,3958.6,3956.7,4.41238604]
[1734307570451,2.52678,3957.6,3956.7,0.7792]
[1734307570649,0.252678,3957.5,3956.7,1.28992966]
[1734307570849,2.5268,3957.6,3956.7,0.7792]
[1734307571189,0.03156498,3957.5,3956.7,0.7792]
[1734307571546,0.55,3957.7,3956.7,0.7792]
[1734307571754,0.03154939,3957.4,3956.7,0.7792]
[1734307571958,0.03158057,3957.6,3956.7,0.7792]
[1734307572204,0.0315338,3957.3,3956.7,0.7792]
[1734307572414,0.55,3957.5,3956.7,0.7792]
[1734307572558,0.03151822,3957.2,3956.7,0.7792]
[1734307572758,0.55,3957.5,3956.7,0.90772816]
[1734307572958,2.5265,3958.1,3956.8,0.02526966]
[1734307573210,0.03049931,3957.4,3956.8,0.7792]
[1734307573359,2.52647,3958.1,3956.8,0.7792]
[1734307573559,0.03048372,3957.3,3956.8,0.7792]
[1734307573782,0.25265,3958.0,3956.8,0.7792]
[1734307574096,0.03057724,3957.9,3956.8,0.7792]
[1734307574323,0.03057724,3957.9,3957.1,0.49501724]
[1734307574484,0.03057724,3957.9,3957.2,0.7792]
[1734307574684,2.77466,3958.5,3957.2,0.7792]
[1734307575007,0.03065515,3958.4,3957.2,0.7792]
[1734307575175,2.55694515,3958.4,3957.2,0.7792]
[1734307575376,2.52645,3958.2,3957.2,0.7792]
[1734307575801,0.58136189,3958.1,3957.2,0.7792]
[1734307576275,0.58136189,3958.1,3957.4,3.0]
[1734307576276,0.03136189,3958.1,3957.4,3.0]
[1734307576479,2.52598,3958.9,3957.5,0.84276387]
[1734307576685,0.30841566,3958.8,3957.5,0.84276387]
[1734307577191,0.03097766,3958.8,3957.7,2.52669]
[1734307577374,0.03097766,3958.8,3957.8,0.81]
[1734307577576,2.52533,3959.9,3958.6,0.81]
[1734307578019,0.03031355,3959.8,3958.7,0.02525606]
[1734307578322,2.52533,3959.9,3958.8,0.7569]
[1734307578323,0.03029798,3959.7,3958.8,0.7569]
[1734307578488,0.03029798,3959.7,3958.9,0.02525574]
[1734307578890,2.525,3960.4,3959.0,0.7569]
[1734307579094,0.03039139,3960.3,3959.2,0.7569]
[1734307579343,0.28289139,3960.3,3959.5,0.49767904]
[1734307579539,0.28289139,3960.3,3959.6,0.7569]
[1734307579820,0.03039139,3960.3,3959.6,0.7569]
[1734307580273,2.5248,3960.7,3959.6,0.7569]
[1734307580426,2.52465,3961.0,3959.7,0.0252502]
[1734307580619,0.03033025,3960.6,3959.7,0.78214832]
[1734307580822,2.52426,3961.6,3960.1,0.7569]
[1734307581080,0.26568894,3961.7,3960.3,0.7569]
[1734307581221,0.03047029,3961.5,3960.6,0.8323]
[1734307581585,2.52384,3962.3,3960.5,0.50974512]
[1734307581586,2.52418,3961.7,3960.7,0.02524484]
[1734307581743,2.52405,3961.9,3960.8,0.8323]
[1734307582064,0.2484,3962.5,3961.0,0.49424781]
[1734307582065,0.0280028,3961.8,3961.0,0.49424781]
[1734307582433,2.52395,3962.1,3961.1,0.8323]
[1734307582636,2.776345,3962.1,3961.1,0.8323]
[1734307582836,0.252395,3962.1,3961.1,0.8323]
[1734307583043,0.02803391,3962.0,3961.1,0.8323]
[1734307583280,2.52366,3962.5,3961.2,0.02523994]
[1734307583436,0.1655162,3962.6,3961.3,0.8323]
[1734307583638,0.1655162,3962.6,3961.4,3.8323]
[1734307583639,0.02762796,3962.5,3961.4,3.8323]
[1734307583974,0.02669148,3962.4,3961.5,0.8107]
[1734307584200,0.02669148,3962.4,3962.2,0.8107]
[1734307584381,2.52345,3962.9,3962.2,0.8107]
[1734307584536,2.52304,3963.5,3962.2,0.8107]
[1734307584537,0.51799294,3963.3,3962.2,0.8107]
[1734307584735,0.02504716,3963.2,3962.2,0.8107]
[1734307585057,2.52344,3962.9,3962.2,0.8107]
[1734307585277,0.02504716,3963.2,3962.2,0.8107]
[1734307585449,2.5231,3963.4,3962.2,0.8107]
[1734307585777,5.1796794,3963.9,3962.2,0.8107]
[1734307585778,2.52323,3963.2,3962.2,0.8107]
[1734307585948,2.52329,3963.1,3962.2,0.8107]
[1734307586153,0.02398165,3963.0,3962.5,0.5097956]
[1734307586478,2.52325,3963.2,3962.5,0.5097956]
[1734307586650,0.02399719,3963.1,3962.5,0.5097956]
[1734307586831,2.52337,3963.0,3962.5,0.5097956]
[1734307587035,0.0269434,3962.9,3962.5,0.5097956]
[1734307587260,0.28197474,3962.9,3962.5,0.5097956]
[1734307587466,2.80539474,3962.9,3962.5,0.5097956]
[1734307588033,0.02572718,3962.8,3962.6,0.84873285]
[1734307588333,2.6568894,3964.9,3963.0,0.8062]
[1734307588577,2.52274,3964.0,3963.0,0.8062]
[1734307588789,2.52225,3964.7,3963.0,0.8062]
[1734307588992,2.52238,3964.5,3963.1,8.89]
[1734307589290,2.52254,3964.3,3963.3,0.7657]
[1734307589634,2.52261,3964.2,3963.3,0.7657]
[1734307589833,2.52267,3964.1,3963.3,0.7657]
[1734307590062,2.52276,3964.0,3963.3,0.7657]
[1734307590376,2.52303,3963.5,3963.3,0.7657]
[1734307590600,2.52303,3963.5,3962.8,0.7579]
[1734307590804,2.52336,3963.0,3962.8,0.7579]
[1734307590956,2.52317,3963.3,3962.8,0.7579]
[1734307591159,2.52317,3963.3,3962.9,0.50968136]
[1734307591386,2.52331,3963.1,3962.9,0.50968136]
[1734307591566,2.52337,3963.0,3962.8,0.7579]
[1734307591901,2.52302,3963.6,3962.8,0.7579]
[1734307592106,2.52317,3963.3,3962.8,1.26662293]
[1734307592304,2.52302,3963.6,3962.8,1.26662293]
[1734307592598,2.6568894,3963.4,3962.3,0.7827]
[1734307592804,2.52404,3961.9,3961.8,0.7827]
[1734307593020,2.776444,3961.9,3961.8,1.29591241]
[1734307593301,2.52404,3961.9,3961.8,1.29591241]
[1734307593604,2.9052894,3963.4,3961.8,0.7827]
[1734307593819,2.5236,3962.6,3961.9,0.02523523]
[1734307594103,0.55,3963.3,3961.9,0.02523523]
[1734307594378,0.55,3963.7,3962.0,0.7754]
[1734307595632,0.55,3963.7,3962.0,1.28488987]
[1734307595926,0.2484,3963.8,3962.0,1.28488987]
[1734307595927,0.55,3963.5,3962.1,0.8191]
[1734307598640,2.6568894,3963.4,3962.1,0.8191]
[1734307598842,0.55,3963.3,3962.1,0.8191]
[1734307600243,0.55,3962.8,3962.1,0.8191]
[1734307600420,0.55,3962.6,3961.7,0.8028]
[1734307601106,0.55,3962.6,3961.4,3.0]
[1734307601756,0.34552894,3962.7,3960.2,0.7538]
[1734307601757,0.55,3961.8,3960.2,0.7538]
[1734307602077,2.6568894,3961.4,3960.2,0.7538]
[1734307602546,2.6568894,3961.4,3960.2,1.25502101]
[1734307602839,0.55,3961.8,3960.2,1.25502101]
[1734307604142,2.6568894,3961.4,3960.2,0.7538]
[1734307604329,0.55,3961.3,3960.2,0.7538]
[1734307605343,2.9052894,3962.4,3960.4,0.8233]
[1734307605551,2.9052894,3962.4,3960.6,0.8233]
[1734307605757,0.29052894,3962.3,3960.6,0.8233]
[1734307605946,0.29052894,3962.3,3960.7,0.02524229]
[1734307606343,0.29052894,3962.3,3960.6,0.8233]
[1734307606544,2.9052894,3962.4,3959.4,0.12866051]
[1734307606545,0.55,3962.2,3960.9,0.8108]
[1734307606748,2.9052894,3962.9,3960.9,0.8108]
[1734307608119,0.55,3962.8,3960.9,0.8108]
[1734307608679,2.9052894,3962.9,3961.1,0.7659]
[1734307608680,2.6568894,3962.9,3961.1,0.7659]
[1734307608822,2.6568894,3962.9,3961.2,0.7659]
[1734307609024,2.6568894,3962.9,3961.2,3.7659]
[1734307609025,0.26568894,3962.8,3961.2,3.7659]
[1734307609277,0.26568894,3962.8,3961.2,0.7659]
[1734307609563,0.26568894,3962.8,3961.4,0.51057536]
[1734307610169,0.55,3962.3,3961.4,0.51057536]
[1734307610961,0.55,3962.3,3961.2,0.7659]
[1734307612565,2.6568894,3961.9,3960.8,0.7979]
[1734307612717,0.7984,3961.8,3960.8,0.7979]
[1734307612920,0.09229041,3961.8,3959.6,8.89]
[1734307613189,0.09229041,3961.8,3959.7,0.82314587]
[1734307613388,0.09229041,3961.8,3960.1,0.12844969]
[1734307613681,2.6568894,3961.9,3960.2,0.83674586]
[1734307613995,2.6568894,3962.4,3960.9,0.7539]
[1734307614440,2.6568894,3962.4,3961.0,0.02523931]
[1734307614786,2.6568894,3962.4,3960.9,0.7539]
[1734307616353,2.6568894,3962.4,3961.1,0.7552]
[1734307617986,2.6568894,3962.4,3961.2,0.02524197]
[1734307618155,0.55,3962.8,3961.3,0.8106]
[1734307618739,2.6568894,3962.9,3961.3,0.8106]
[1734307619476,2.6568894,3962.3,3961.3,0.8106]
[1734307619781,0.0923,3962.2,3960.8,0.7576]
[1734307619965,2.6568894,3961.8,3960.8,0.7576]
[1734307620981,2.6568894,3962.3,3960.9,0.0252433]
[1734307621146,2.6568894,3962.3,3960.7,0.02524134]
[1734307621351,2.6568894,3962.8,3961.0,0.8146]
[1734307621551,2.6568894,3962.8,3961.2,3.8146]
[1734307621850,2.6568894,3962.8,3961.3,0.8146]
[1734307622292,2.6568894,3962.8,3961.4,0.49831186]
[1734307623459,2.6568894,3962.8,3961.5,0.8556416]
[1734307623758,2.6568894,3962.8,3961.6,0.21937919]
[1734307624155,2.6568894,3963.3,3961.8,3.7999]
[1734307624453,2.7491894,3964.3,3962.0,0.7999]
[1734307624656,0.27491894,3964.2,3962.6,1.02862814]
[1734307624891,0.27491894,3964.2,3962.8,0.7999]
[1734307625194,2.6568894,3963.8,3962.8,0.7999]
[1734307626191,2.6568894,3963.3,3962.4,0.8095]
[1734307626884,2.664,3964.7,3961.6,1.7623214]
[1734307626885,2.6568894,3962.8,3961.8,0.8238]
[1734307627756,2.6568894,3963.3,3961.9,2.1380761]
[1734307627979,1.56875585,3964.8,3961.8,0.8238]
[1734307627980,2.6568894,3963.8,3962.2,1.02862814]
[1734307628191,2.6568894,3964.3,3962.6,1.02862814]
[1734307628391,0.0923,3964.8,3963.2,0.51335105]
[1734307628392,2.7491894,3964.8,3963.2,0.51335105]
[1734307628605,2.6568894,3964.8,3963.4,0.7588]
[1734307628803,0.27491894,3964.7,3963.5,0.02522526]
[1734307629437,2.7491894,3965.3,3963.6,0.786]
[1734307629601,1.73427205,3966.5,3963.6,0.786]
[1734307629602,0.13737489,3966.4,3963.6,0.786]
[1734307629812,1.73427205,3966.5,3963.2,0.64772613]
[1734307629813,0.0923,3966.2,3964.2,1.02862814]
[1734307629965,2.6568894,3965.6,3964.3,0.5158735]
[1734307630164,2.6568894,3965.6,3964.0,4.81462814]
[1734307630165,2.6568894,3965.6,3964.0,0.786]
[1734307630399,0.26568894,3965.5,3964.1,3.85259912]
[1734307630617,0.26568894,3965.5,3964.0,0.786]
[1734307630907,0.1655162,3966.5,3964.4,0.786]
[1734307630908,2.6568894,3966.1,3964.4,0.786]
[1734307631112,2.6568894,3966.1,3964.4,0.8112168]
[1734307631410,2.6568894,3966.1,3964.6,3.8262]
[1734307631566,0.26568894,3966.0,3964.7,0.62326072]
[1734307631959,0.26568894,3966.0,3964.6,0.8262]
[1734307633020,0.26568894,3966.0,3964.7,0.49902248]
[1734307633813,0.26568894,3966.0,3964.8,0.02521661]
[1734307634022,0.1655162,3966.5,3964.9,0.7986]
[1734307634220,0.1655162,3966.5,3965.0,0.7986]
[1734307634713,0.1655162,3966.5,3965.4,0.49261505]
[1734307635027,0.1655162,3966.5,3965.5,0.7986]
[1734307635170,0.1655162,3966.5,3965.6,0.12912151]
[1734307636460,0.1655162,3966.5,3965.7,0.82]
[1734307637255,0.1655162,3966.5,3965.9,0.763]
[1734307638457,2.6568894,3966.2,3965.9,0.763]
[1734307638605,2.6568894,3966.2,3964.7,8.89]
[1734307638606,2.6568894,3966.2,3965.5,0.763]
[1734307638806,2.93912996,3966.2,3965.5,0.763]
[1734307639016,2.93912996,3966.2,3965.1,0.763]
[1734307639350,0.1655162,3966.5,3965.2,0.8216]
[1734307639905,2.6568894,3966.2,3965.2,0.8216]
[1734307640897,0.55,3966.1,3965.2,0.8216]
[1734307641101,0.32068894,3966.0,3965.2,0.8216]
[1734307641865,2.6568894,3965.7,3964.8,0.7538]
[1734307643297,2.6568894,3966.2,3964.8,0.7538]
[1734307643497,0.55,3966.1,3964.8,0.7538]
[1734307643953,2.6568894,3966.2,3964.8,0.7538]
[1734307644942,0.55,3966.1,3964.8,0.7538]
[1734307645645,0.1655162,3966.5,3964.9,0.02522092]
[1734307645842,0.55,3966.4,3964.8,0.7538]
[1734307646041,0.55,3966.4,3964.5,0.51028432]
[1734307646042,0.1655162,3966.5,3964.9,0.85361749]
[1734307646252,0.1655162,3966.5,3964.9,0.8284]
[1734307646803,0.1655162,3966.5,3965.3,0.49367652]
[1734307647145,0.44775676,3966.5,3965.3,0.49367652]
[1734307647346,0.55,3966.4,3965.3,0.49367652]
[1734307648008,0.44775676,3966.5,3965.4,0.8284]
[1734307648009,0.1655162,3966.5,3965.4,0.8284]
[1734307649380,0.1655162,3966.5,3965.4,0.85361259]
[1734307649718,0.0923,3967.8,3966.0,0.49831482]
[1734307649952,0.0923,3967.8,3966.1,0.8179]
[1734307650118,0.0923,3967.8,3966.2,0.13162148]
[1734307650868,0.55,3967.7,3966.2,0.13162148]
[1734307651079,0.0923,3968.5,3966.3,0.8231]
[1734307651874,2.6568894,3968.7,3966.3,0.8231]
[1734307652084,0.0923,3968.6,3966.3,0.8231]
[1734307652218,0.55,3968.1,3966.3,0.8231]
[1734307652421,0.55,3968.1,3966.5,0.50537677]
[1734307652622,0.55,3968.1,3966.6,0.8231]
[1734307654624,0.55,3968.1,3966.5,0.53058315]
[1734307654853,3.0923,3968.6,3966.6,0.7579]
[1734307655030,0.55,3968.4,3966.6,0.7579]
[1734307655376,0.55,3968.4,3966.8,0.7579]
[1734307656069,0.55,3968.9,3967.0,0.8126]
[1734307656276,0.0923,3969.0,3967.1,0.02520228]
[1734307656423,0.27491894,3969.0,3967.2,0.8126]
[1734307657769,0.0923,3968.9,3967.2,0.8126]